Workbook

Sheet List1 (hidden)

Sheet Poriadok
C2: aud | D2: CADAUD | E2: JPYAUD | F2: NZDAUD | G2: USDAUD | H2: EURAUD | I2: GBPAUD | J2: CHFAUD | N2: cad | O2: AUDCAD | P2: CHFCAD | Q2: JPYCAD | R2: EURCAD | S2: GBPCAD | T2: USDCAD | U2: NZDCAD
D3: =1.0038 -> 1.0038 | E3: =1.2534 -> 1.2534 | F3: =0.8029 -> 0.8029 | G3: =0.9838 -> 0.9838 | H3: 1.2732 | I3: 1.58453 | J3: =1.0515 -> 1.0515 | O3: 1.0153 | P3: =1.0331 -> 1.0331 | Q3: =1.249 -> 1.249 | R3: 1.2471 | S3: 1.56247 | T3: 0.9723 | U3: 0.7902
C5: eur | D5: AUDEUR | E5: CADEUR | F5: CHFEUR | G5: GBPEUR | H5: JPYEUR | I5: USDEUR | J5: NZDEUR | N5: gbp | O5: EURGBP | P5: CADGBP | Q5: AUDGBP | R5: NZDGBP | S5: CHFGBP | T5: JPYGBP | U5: USDGBP
D6: =0.8516 -> 0.8516 | E6: =0.817 -> 0.817 | F6: =0.8327 -> 0.8327 | G6: =1.2716 -> 1.2716 | H6: =1.0347 -> 1.0347 | I6: =0.8108 -> 0.8108 | J6: =0.6553 -> 0.6553 | O6: 0.8022 | P6: =0.6261 -> 0.6261 | Q6: =0.63 -> 0.63 | R6: =0.4895 -> 0.4895 | S6: =0.6614 -> 0.6614 | T6: =0.8329 -> 0.8329 | U6: =0.6506 -> 0.6506
C8: chf | D8: CADCHF | E8: JPYCHF | F8: EURCHF | G8: GBPCHF | H8: USDCHF | I8: AUDCHF | J8: NZDCHF | N8: jpy | O8: AUDJPY | P8: CADJPY | Q8: CHFJPY | R8: EURJPY | S8: GBPJPY | T8: NZDJPY | U8: USDJPY
D9: 0.974 | E9: =1.2812 -> 1.2812 | F9: 1.201 | G9: 1.5255 | H9: 0.9768 | I9: 1.0281 | J9: 0.7805 | O9: 0.8694 | P9: 0.832 | Q9: 0.882 | R9: 1.06529 | S9: 1.3239 | T9: 0.686 | U9: 0.8236
C11: nzd | D11: GBPNZD | E11: JPYNZD | F11: USDNZD | G11: EURNZD | H11: CADNZD | I11: CHFNZD | J11: AUDNZD | N11: usd | O11: AUDUSD | P11: GBPUSD | Q11: NZDUSD | R11: CADUSD | S11: CHFUSD | T11: JPYUSD | U11: EURUSD
D12: 1.99121 | E12: =1.6017 -> 1.6017 | F12: =1.254 -> 1.254 | G12: 1.5731 | H12: =1.2782 -> 1.2782 | I12: =1.3156 -> 1.3156 | J12: 1.2835 | O12: 1.0576 | P12: 1.6224 | Q12: 0.8342 | R12: =1.036 -> 1.036 | S12: =1.078 -> 1.078 | T12: =1.2881 -> 1.2881 | U12: 1.3139
A16: Aktuálny kurz | B16: AUD | D16: CADAUD | E16: JPYAUD | F16: NZDAUD | G16: USDAUD | H16: EURAUD | I16: GBPAUD | J16: CHFAUD | K16: pv | M16: CAD | O16: AUDCAD | P16: CHFCAD | Q16: JPYCAD | R16: EURCAD | S16: GBPCAD | T16: USDCAD | U16: NZDCAD | V16: pv
C17: Ask | D17: =1/[1]!AUDCAD -> 0.9660902328 | E17: =1/[1]!AUDJPY*100 -> 1.082133968 | F17: =1/[1]!AUDNZD -> 0.7926442613 | G17: =1/[1]!AUDUSD -> 0.953743443 | H17: =[1]!EURAUD -> 1.2484 | I17: =[1]!GBPAUD -> 1.5347 | J17: =1/[1]!AUDCHF -> 1.031778787 | K17: =(0.0001/G19)*10000 -> 1.048349979 | N17: Ask | O17: =[1]!AUDCAD -> 1.0351 | P17: =1/[1]!CADCHF -> 1.067805659 | Q17: =1/[1]!CADJPY*100 -> 1.119068935 | R17: =[1]!EURCAD -> 1.2916 | S17: =[1]!GBPCAD -> 1.5875 | T17: =[1]!USDCAD -> 0.9872 | U17: =[1]!NZDCAD -> 0.8218 | V17: =(0.0001/T19)*10000 -> 1.013119903
C18: Bid | D18: =1/[2]!AUDCAD -> 0.9669309611 | E18: =1/[2]!AUDJPY*100 -> 1.082602577 | F18: =1/[2]!AUDNZD -> 0.7944704854 | G18: =1/[2]!AUDUSD -> 0.9540164091 | H18: =[2]!EURAUD -> 1.2473 | I18: =[2]!GBPAUD -> 1.5328 | J18: =1/[2]!AUDCHF -> 1.033271337 | N18: Bid | O18: =[2]!AUDCAD -> 1.0342 | P18: =1/[2]!CADCHF -> 1.068604403 | Q18: =1/[2]!CADJPY*100 -> 1.120197155 | R18: =[2]!EURCAD -> 1.2907 | S18: =[2]!GBPCAD -> 1.5861 | T18: =[2]!USDCAD -> 0.9869 | U18: =[2]!NZDCAD -> 0.8204
C19: Priemer | D19: =(D17+D18)/2 -> 0.966510597 | E19: =(E17+E18)/2 -> 1.082368272 | F19: 0.7935573733 | G19: 0.953879926 | H19: 1.24785 | I19: 1.53375 | J19: 1.032525062 | N19: Priemer | O19: =(O17+O18)/2 -> 1.03465 | P19: =(P17+P18)/2 -> 1.068205031 | Q19: 1.119633045 | R19: 1.29115 | S19: 1.5868 | T19: 0.98705 | U19: 0.8211
C20: spread | D20: =ABS(D17-D18)*10000 -> 8.407283016 | E20: =ABS(E17-E18)*10000 -> 4.686084089 | F20: 18.26224166 | G20: 2.729660684 | H20: 11 | I20: 19 | J20: 14.92550425 | K20: =SUM(D20:J20) -> 79.0107737 | N20: spread | O20: =ABS(O17-O18)*10000 -> 9 | P20: =ABS(P17-P18)*10000 -> 7.987432801 | Q20: 11.28220053 | R20: 9 | S20: 14 | T20: 3 | U20: 14 | V20: =SUM(O20:U20) -> 68.26963333
B22: EUR | D22: AUDEUR | E22: CADEUR | F22: CHFEUR | G22: GBPEUR | H22: JPYEUR | I22: USDEUR | J22: NZDEUR | K22: pv | M22: GBP | O22: EURGBP | P22: CADGBP | Q22: AUDGBP | R22: NZDGBP | S22: CHFGBP | T22: JPYGBP | U22: USDGBP | V22: pv
C23: Ask | D23: =1/[1]!EURAUD -> 0.8010253124 | E23: =1/[1]!EURCAD -> 0.7742335088 | F23: =1/[1]!EURCHF -> 0.8272667108 | G23: =1/[1]!EURGBP -> 1.228803146 | H23: =1/[1]!EURJPY*100 -> 0.8671522719 | I23: =1/[1]!EURUSD -> 0.7643506841 | J23: =1/[1]!EURNZD -> 0.6354855109 | K23: =(0.0001/I25)*10000 -> 1.308149983 | N23: Ask | O23: =[1]!EURGBP -> 0.8138 | P23: =1/[1]!GBPCAD -> 0.6299212598 | Q23: =1/[1]!GBPAUD -> 0.6515931452 | R23: =1/[1]!GBPNZD -> 0.5169828879 | S23: =1/[1]!GBPCHF -> 0.672992799 | T23: =1/[1]!GBPJPY*100 -> 0.7054673721 | U23: =1/[1]!GBPUSD -> 0.6218905473 | V23: =(0.0001/U25)*10000 -> 1.607849986
C24: Bid | D24: =1/[2]!EURAUD -> 0.8017317406 | E24: =1/[2]!EURCAD -> 0.7747733788 | F24: =1/[2]!EURCHF -> 0.8275405495 | G24: =1/[2]!EURGBP -> 1.2292563 | H24: =1/[2]!EURJPY*100 -> 0.8673779166 | I24: =1/[2]!EURUSD -> 0.7645259939 | J24: =1/[2]!EURNZD -> 0.6364562118 | N24: Bid | O24: =[2]!EURGBP -> 0.8135 | P24: =1/[2]!GBPCAD -> 0.6304772713 | Q24: =1/[2]!GBPAUD -> 0.6524008351 | R24: =1/[2]!GBPNZD -> 0.5178932104 | S24: =1/[2]!GBPCHF -> 0.6733099919 | T24: =1/[2]!GBPJPY*100 -> 0.7058159232 | U24: =1/[2]!GBPUSD -> 0.6220065933
C25: Priemer | D25: =(D23+D24)/2 -> 0.8013785265 | E25: =(E23+E24)/2 -> 0.7745034438 | F25: 0.8274036301 | G25: 1.229029723 | H25: 0.8672650942 | I25: 0.764438339 | J25: 0.6359708614 | N25: Priemer | O25: =(O23+O24)/2 -> 0.81365 | P25: =(P23+P24)/2 -> 0.6301992656 | Q25: 0.6519969902 | R25: 0.5174380491 | S25: 0.6731513954 | T25: 0.7056416477 | U25: 0.6219485703
C26: spread | D26: =ABS(D23-D24)*10000 -> 7.064281597 | E26: =ABS(E23-E24)*10000 -> 5.398699604 | F26: 2.738386994 | G26: 4.531542025 | H26: 2.256446193 | I26: 1.753097899 | J26: 9.707008823 | K26: =SUM(D26:J26) -> 33.44946314 | N26: spread | O26: =ABS(O23-O24)*10000 -> 3 | P26: =ABS(P23-P24)*10000 -> 5.560114519 | Q26: 8.07689833 | R26: 9.103225536 | S26: 3.171929432 | T26: 3.485510732 | U26: 1.160460062 | V26: =SUM(O26:U26) -> 33.55813861
B28: CHF | D28: CADCHF | E28: JPYCHF | F28: EURCHF | G28: GBPCHF | H28: USDCHF | I28: AUDCHF | J28: NZDCHF | K28: pv | M28: JPY | O28: AUDJPY | P28: CADJPY | Q28: CHFJPY | R28: EURJPY | S28: GBPJPY | T28: NZDJPY | U28: USDJPY | V28: pv
C29: Ask | D29: =[1]!CADCHF -> 0.9365 | E29: =1/[1]!CHFJPY*100 -> 1.047888505 | F29: =[1]!EURCHF -> 1.2088 | G29: =[1]!GBPCHF -> 1.4859 | H29: =[1]!USDCHF -> 0.9242 | I29: =[1]!AUDCHF -> 0.9692 | J29: =[1]!NZDCHF -> 0.7696 | K29: =(0.0001/H31)*10000 -> 1.082192522 | N29: Ask | O29: =[1]!AUDJPY/100 -> 0.9241 | P29: =[1]!CADJPY/100 -> 0.8936 | Q29: =[1]!CHFJPY/100 -> 0.9543 | R29: =[1]!EURJPY/100 -> 1.1532 | S29: =[1]!GBPJPY/100 -> 1.4175 | T29: =[1]!NZDJPY/100 -> 0.7339 | U29: =[1]!USDJPY/100 -> 0.8816 | V29: =(0.0001/U31)*10000 -> 1.134494299
C30: Bid | D30: =[2]!CADCHF -> 0.9358 | E30: =1/[2]!CHFJPY*100 -> 1.048437828 | F30: =[2]!EURCHF -> 1.2084 | G30: =[2]!GBPCHF -> 1.4852 | H30: =[2]!USDCHF -> 0.9239 | I30: =[2]!AUDCHF -> 0.9678 | J30: =[2]!NZDCHF -> 0.7677 | N30: Bid | O30: =[2]!AUDJPY/100 -> 0.9237 | P30: =[2]!CADJPY/100 -> 0.8927 | Q30: =[2]!CHFJPY/100 -> 0.9538 | R30: =[2]!EURJPY/100 -> 1.1529 | S30: =[2]!GBPJPY/100 -> 1.4168 | T30: =[2]!NZDJPY/100 -> 0.7325 | U30: =[2]!USDJPY/100 -> 0.8813
C31: Priemer | D31: =(D29+D30)/2 -> 0.93615 | E31: =(E29+E30)/2 -> 1.048163166 | F31: 1.2086 | G31: 1.48555 | H31: 0.92405 | I31: 0.9685 | J31: 0.76865 | N31: Priemer | O31: =(O29+O30)/2 -> 0.9239 | P31: =(P29+P30)/2 -> 0.89315 | Q31: 0.95405 | R31: 1.15305 | S31: 1.41715 | T31: 0.7332 | U31: 0.88145
C32: spread | D32: =ABS(D29-D30)*10000 -> 7 | E32: =ABS(E29-E30)*10000 -> 5.493229737 | F32: 4 | G32: 7 | H32: 3 | I32: 14 | J32: 19 | K32: =SUM(D32:J32) -> 59.49322974 | N32: spread | O32: =ABS(O29-O30)*10000 -> 4 | P32: =ABS(P29-P30)*10000 -> 9 | Q32: 5 | R32: 3 | S32: 7 | T32: 14 | U32: 3 | V32: =SUM(O32:U32) -> 45
C34: NZD | D34: GBPNZD | E34: JPYNZD | F34: USDNZD | G34: EURNZD | H34: CADNZD | I34: CHFNZD | J34: AUDNZD | K34: pv | M34: USD | O34: AUDUSD | P34: GBPUSD | Q34: NZDUSD | R34: CADUSD | S34: CHFUSD | T34: JPYUSD | U34: EURUSD | V34: pv
C35: Ask | D35: =[1]!GBPNZD -> 1.9343 | E35: =1/[1]!NZDJPY*100 -> 1.362583458 | F35: =1/[1]!NZDUSD -> 1.201778632 | G35: =[1]!EURNZD -> 1.5736 | H35: =1/[1]!NZDCAD -> 1.216841081 | I35: =1/[1]!NZDCHF -> 1.299376299 | J35: =[1]!AUDNZD -> 1.2616 | K35: =(0.0001/F37)*10000 -> 0.831949973 | N35: Ask | O35: =[1]!AUDUSD -> 1.0485 | P35: =[1]!GBPUSD -> 1.608 | Q35: =[1]!NZDUSD -> 0.8321 | R35: =1/[1]!USDCAD -> 1.012965964 | S35: =1/[1]!USDCHF -> 1.082016879 | T35: =1/[1]!USDJPY*100 -> 1.13430127 | U35: =[1]!EURUSD -> 1.3083 | V35: 1
C36: Bid | D36: =[2]!GBPNZD -> 1.9309 | E36: =1/[2]!NZDJPY*100 -> 1.365187713 | F36: =1/[2]!NZDUSD -> 1.20221207 | G36: =[2]!EURNZD -> 1.5712 | H36: =1/[2]!NZDCAD -> 1.218917601 | I36: =1/[2]!NZDCHF -> 1.302592158 | J36: =[2]!AUDNZD -> 1.2587 | N36: Bid | O36: =[2]!AUDUSD -> 1.0482 | P36: =[2]!GBPUSD -> 1.6077 | Q36: =[2]!NZDUSD -> 0.8318 | R36: =1/[2]!USDCAD -> 1.013273888 | S36: =1/[2]!USDCHF -> 1.082368222 | T36: =1/[2]!USDJPY*100 -> 1.134687394 | U36: =[2]!EURUSD -> 1.308
C37: Priemer | D37: =(D35+D36)/2 -> 1.9326 | E37: =(E35+E36)/2 -> 1.363885586 | F37: =(F35+F36)/2 -> 1.201995351 | G37: 1.5724 | H37: 1.217879341 | I37: 1.300984229 | J37: 1.26015 | N37: Priemer | O37: =(O35+O36)/2 -> 1.04835 | P37: =(P35+P36)/2 -> 1.60785 | Q37: 0.83195 | R37: 1.013119926 | S37: 1.082192551 | T37: 1.134494332 | U37: 1.30815
C38: spread | D38: =ABS(D35-D36)*10000 -> 34 | E38: 26.04255074 | F38: 4.334378333 | G38: 24 | H38: 20.76520615 | I38: 32.15859019 | J38: 29 | K38: =SUM(D38:J38) -> 170.3007254 | N38: spread | O38: =ABS(O35-O36)*10000 -> 3 | P38: 3 | Q38: 3 | R38: 3.079235883 | S38: 3.513422057 | T38: 3.861232056 | U38: 3 | V38: =SUM(O38:U38) -> 22.45389
A41: Rozdiely | C41: aud | D41: CADAUD | E41: JPYAUD | F41: NZDAUD | G41: USDAUD | H41: EURAUD | I41: GBPAUD | J41: CHFAUD | N41: cad | O41: AUDCAD | P41: CHFCAD | Q41: JPYCAD | R41: EURCAD | S41: GBPCAD | T41: USDCAD | U41: NZDCAD
C42: =(D42+E42+F42+G42+H42+I42+J42) -> 3426.887694 | D42: =((D3-D19))*10000 -> 372.8940302 | E42: 1710.317276 | F42: 93.42626661 | G42: 299.2007395 | H42: 253.5 | I42: 507.8 | J42: 189.7493816 | N42: =O42+P42+Q42+R42+S42+T42+U42 -> -391.1807568 | O42: =(O3-O19)*10000 -> -193.5 | P42: -351.0503101 | Q42: 1293.669553 | R42: -440.5 | S42: -243.3 | T42: -147.5 | U42: -309
C44: eur | D44: AUDEUR | E44: CADEUR | F44: CHFEUR | G44: GBPEUR | H44: JPYEUR | I44: USDEUR | J44: NZDEUR | N44: gbp | O44: EURGBP | P44: CADGBP | Q44: AUDGBP | R44: NZDGBP | S44: CHFGBP | T44: JPYGBP | U44: USDGBP
C45: =D45+E45+F45+G45+H45+I45+J45 -> 3737.103821 | D45: =((D6-D25))*10000 -> 502.2147352 | E45: =((E6-E25))*10000 -> 424.9655619 | F45: =((F6-F25))*10000 -> 52.96369863 | G45: 425.7027716 | H45: 1674.349058 | I45: 463.6166101 | J45: 193.2913863 | N45: =O45+P45+Q45+R45+S45+T45+U45 -> 786.7408175 | O45: =(O6-O25)*10000 -> -114.5 | P45: =(P6-P25)*10000 -> -40.99265568 | Q45: -219.9699016 | R45: -279.3804914 | S45: -117.5139545 | T45: 1272.583523 | U45: 286.5142973
C47: chf | D47: CADCHF | E47: JPYCHF | F47: EURCHF | G47: GBPCHF | H47: USDCHF | I47: AUDCHF | J47: NZDCHF | N47: jpy | O47: AUDJPY | P47: CADJPY | Q47: CHFJPY | R47: EURJPY | S47: GBPJPY | T47: NZDJPY | U47: USDJPY
C48: =D48+E48+F48+G48+H48+I48+J48 -> 4274.368339 | D48: =(D9-D31)*10000 -> 378.5 | E48: =(E9-E31)*10000 -> 2330.368339 | F48: -76 | G48: 399.5 | H48: 527.5 | I48: 596 | J48: 118.5 | N48: =O48+P48+Q48+R48+S48+T48+U48 -> -4737.6 | O48: =(O9-O31)*10000 -> -545 | P48: =(P9-P31)*10000 -> -611.5 | Q48: -720.5 | R48: -877.6 | S48: -932.5 | T48: -472 | U48: -578.5 | W48: =-1 -> -1
W49: 1
C50: nzd | D50: GBPNZD | E50: JPYNZD | F50: USDNZD | G50: EURNZD | H50: CADNZD | I50: CHFNZD | J50: AUDNZD | N50: usd | O50: AUDUSD | P50: GBPUSD | Q50: NZDUSD | R50: CADUSD | S50: CHFUSD | T50: JPYUSD | U50: EURUSD
C51: =D51+E51+F51+G51+H51+I51+J51 -> 4474.154932 | D51: =(D12-D37)*10000 -> 586.1 | E51: 2378.144142 | F51: 520.0464871 | G51: 7 | H51: 603.2065914 | I51: 146.1577111 | J51: 233.5 | N51: =O51+P51+Q51+R51+S51+T51+U51 -> 2040.931913 | O51: =(O12-O37)*10000 -> 92.5 | P51: 145.5 | Q51: 22.5 | R51: 228.8007386 | S51: -41.92550566 | T51: 1536.05668 | U51: 57.5
V56: =SUM(#REF!) -> 
